[Event "Titled Tuesday Blitz June 20 Late 2023"]
[White "Ismayil, Malak"]
[Black "Bueno, Alfeu Junior Varela"]
[WhiteFideId "13412604"]
[BlackFideId "2108879"]
[WhiteElo "1868"]
[BlackElo "2175"]
[Result "1-0"]
[Round "4"]
[TimeControl "180+2"]
[Date "2023.06.20"]
[WhiteClock "0:01:14"]
[BlackClock "0:00:00"]
[Board "125"]

1. e4 {[%clk 0:03:00]}  e6 {[%clk 0:03:00]} 2. d4 {[%clk 0:03:00]}  d5 {[%clk 0:03:01]} 3. Nd2 {[%clk 0:03:01]}  Nf6 {[%clk 0:03:01]} 4. e5 {[%clk 0:03:01]}  Nfd7 {[%clk 0:03:01]} 5. Bd3 {[%clk 0:03:02]}  c5 {[%clk 0:03:02]} 6. c3 {[%clk 0:03:02]}  Nc6 {[%clk 0:03:03]} 7. Ne2 {[%clk 0:03:02]}  cxd4 {[%clk 0:03:04]} 8. cxd4 {[%clk 0:03:03]}  f6 {[%clk 0:03:04]} 9. exf6 {[%clk 0:03:04]}  Nxf6 {[%clk 0:03:05]} 10. Nf3 {[%clk 0:03:04]}  Bd6 {[%clk 0:03:06]} 11. Bf4 {[%clk 0:03:03]}  Bxf4 {[%clk 0:03:01]} 12. Nxf4 {[%clk 0:03:04]}  Qb6 {[%clk 0:03:00]} 13. O-O {[%clk 0:03:03]}  Qxb2 {[%clk 0:02:58]} 14. Re1 {[%clk 0:02:57]}  O-O {[%clk 0:02:56]} 15. Ng5 {[%clk 0:02:05]}  Qxd4 {[%clk 0:00:36]} 16. Ngxe6 {[%clk 0:02:01]}  Bxe6 {[%clk 0:00:34]} 17. Nxe6 {[%clk 0:02:02]}  Qh4 {[%clk 0:00:32]} 18. g3 {[%clk 0:01:54]}  Qh3 {[%clk 0:00:26]} 19. Bf1 {[%clk 0:01:51]}  Qf5 {[%clk 0:00:23]} 20. Nxf8 {[%clk 0:01:49]}  Rxf8 {[%clk 0:00:24]} 21. Qd3 {[%clk 0:01:41]}  Ne4 {[%clk 0:00:20]} 22. f4 {[%clk 0:01:41]}  Nb4 {[%clk 0:00:12]} 23. Qb3 {[%clk 0:01:37]}  a5 {[%clk 0:00:10]} 24. Rad1 {[%clk 0:01:34]}  Nc5 {[%clk 0:00:10]} 25. Qe3 {[%clk 0:01:23]}  d4 {[%clk 0:00:06]} 26. Qxd4 {[%clk 0:01:16]}  Nc2 {[%clk 0:00:06]} 27. Qc4+ {[%clk 0:01:16]}  Kh8 {[%clk 0:00:04]} 28. Re5 {[%clk 0:01:16]}  Qg6 {[%clk 0:00:00]} 29. Qxc5 {[%clk 0:01:14]} 1-0


[Site "https://www.chess.com"]

[Event "Titled Tuesday Blitz June 20 Late 2023"]
[White "Silva Lucena, Cristian"]
[Black "D`Arruda, Ricardo D."]
[WhiteFideId "2232588"]
[BlackFideId "100692"]
[WhiteElo "2223"]
[BlackElo "2531"]
[Result "0-1"]
[Round "4"]
[TimeControl "180+2"]
[Date "2023.06.20"]
[WhiteClock "0:00:06"]
[BlackClock "0:00:39"]
[Board "126"]

1. e4 {[%clk 0:02:42]}  c5 {[%clk 0:02:55]} 2. Nf3 {[%clk 0:02:39]}  Nc6 {[%clk 0:02:56]} 3. d4 {[%clk 0:02:38]}  cxd4 {[%clk 0:02:54]} 4. Nxd4 {[%clk 0:02:39]}  e5 {[%clk 0:02:55]} 5. Nb5 {[%clk 0:02:35]}  a6 {[%clk 0:02:55]} 6. Nd6+ {[%clk 0:02:33]}  Bxd6 {[%clk 0:02:56]} 7. Qxd6 {[%clk 0:02:33]}  Qe7 {[%clk 0:02:56]} 8. Qxe7+ {[%clk 0:02:31]}  Ngxe7 {[%clk 0:02:57]} 9. Nc3 {[%clk 0:02:32]}  Nb4 {[%clk 0:02:54]} 10. Bd3 {[%clk 0:02:31]}  d5 {[%clk 0:02:53]} 11. exd5 {[%clk 0:02:28]}  Bf5 {[%clk 0:02:51]} 12. Bxf5 {[%clk 0:02:21]}  Nxf5 {[%clk 0:02:52]} 13. O-O {[%clk 0:02:22]}  O-O-O {[%clk 0:02:50]} 14. f4 {[%clk 0:02:09]}  Nxc2 {[%clk 0:02:48]} 15. Rb1 {[%clk 0:02:06]}  Nfe3 {[%clk 0:02:46]} 16. Bxe3 {[%clk 0:02:04]}  Nxe3 {[%clk 0:02:45]} 17. Rf3 {[%clk 0:02:04]}  exf4 {[%clk 0:02:30]} 18. Rxf4 {[%clk 0:02:03]}  f6 {[%clk 0:02:21]} 19. Rd4 {[%clk 0:01:57]}  Rhe8 {[%clk 0:02:12]} 20. Rc1 {[%clk 0:01:48]}  Kb8 {[%clk 0:02:12]} 21. d6 {[%clk 0:01:44]}  Nf5 {[%clk 0:02:11]} 22. Rb4 {[%clk 0:01:38]}  Nxd6 {[%clk 0:02:08]} 23. Na4 {[%clk 0:01:38]}  Rc8 {[%clk 0:02:06]} 24. Nc5 {[%clk 0:01:35]}  Rc6 {[%clk 0:02:06]} 25. Rg4 {[%clk 0:01:19]}  Re7 {[%clk 0:02:02]} 26. Rh4 {[%clk 0:01:18]}  Rec7 {[%clk 0:01:57]} 27. b4 {[%clk 0:01:15]}  Ka7 {[%clk 0:01:57]} 28. Rd1 {[%clk 0:01:10]}  h6 {[%clk 0:01:56]} 29. Rg4 {[%clk 0:01:09]}  Nf5 {[%clk 0:01:52]} 30. Re1 {[%clk 0:01:01]}  b6 {[%clk 0:01:51]} 31. Nd3 {[%clk 0:00:57]}  Rd6 {[%clk 0:01:43]} 32. Nf4 {[%clk 0:00:53]}  Rd4 {[%clk 0:01:42]} 33. h3 {[%clk 0:00:53]}  Rxb4 {[%clk 0:01:42]} 34. Nd5 {[%clk 0:00:51]}  Rxg4 {[%clk 0:01:29]} 35. hxg4 {[%clk 0:00:48]}  Rd7 {[%clk 0:01:28]} 36. Nxf6 {[%clk 0:00:43]}  gxf6 {[%clk 0:01:21]} 37. gxf5 {[%clk 0:00:43]}  Rd5 {[%clk 0:01:22]} 38. g4 {[%clk 0:00:43]}  Rd4 {[%clk 0:01:22]} 39. Re6 {[%clk 0:00:41]}  Rxg4+ {[%clk 0:01:20]} 40. Kh2 {[%clk 0:00:41]}  Ra4 {[%clk 0:01:16]} 41. Rxf6 {[%clk 0:00:41]}  Rxa2+ {[%clk 0:01:16]} 42. Kg3 {[%clk 0:00:41]}  a5 {[%clk 0:01:16]} 43. Rxh6 {[%clk 0:00:41]}  Rc2 {[%clk 0:01:13]} 44. f6 {[%clk 0:00:40]}  Rc8 {[%clk 0:01:12]} 45. f7 {[%clk 0:00:32]}  Rf8 {[%clk 0:01:11]} 46. Rf6 {[%clk 0:00:31]}  a4 {[%clk 0:01:10]} 47. Kf3 {[%clk 0:00:29]}  a3 {[%clk 0:01:09]} 48. Ke3 {[%clk 0:00:27]}  b5 {[%clk 0:01:02]} 49. Kd4 {[%clk 0:00:25]}  a2 {[%clk 0:00:58]} 50. Rf1 {[%clk 0:00:24]}  Kb6 {[%clk 0:00:57]} 51. Ra1 {[%clk 0:00:20]}  Rxf7 {[%clk 0:00:57]} 52. Rxa2 {[%clk 0:00:20]}  Rc7 {[%clk 0:00:58]} 53. Rf2 {[%clk 0:00:09]}  Ka5 {[%clk 0:00:50]} 54. Kd3 {[%clk 0:00:08]}  Ka4 {[%clk 0:00:50]} 55. Rc2 {[%clk 0:00:08]}  Rxc2 {[%clk 0:00:44]} 56. Kxc2 {[%clk 0:00:08]}  Ka3 {[%clk 0:00:45]} 57. Kb1 {[%clk 0:00:06]}  Kb3 {[%clk 0:00:45]} 58. Ka1 {[%clk 0:00:07]}  Kc2 {[%clk 0:00:45]} 59. Ka2 {[%clk 0:00:07]}  b4 {[%clk 0:00:45]} 60. Ka1 {[%clk 0:00:08]}  Kb3 {[%clk 0:00:37]} 61. Kb1 {[%clk 0:00:08]}  Kc3 {[%clk 0:00:37]} 62. Ka1 {[%clk 0:00:09]}  b3 {[%clk 0:00:38]} 63. Kb1 {[%clk 0:00:09]}  b2 {[%clk 0:00:39]} 64. Ka2 {[%clk 0:00:06]}  Kc2 {[%clk 0:00:39]} 0-1


[Site "https://www.chess.com"]

[Event "Titled Tuesday Blitz June 20 Late 2023"]
[White "Srdanovic, Jovana"]
[Black "Rian, Kapriaga"]
[WhiteFideId "954810"]
[BlackFideId "7103263"]
[WhiteElo "2155"]
[BlackElo "2348"]
[Result "1-0"]
[Round "4"]
[TimeControl "180+2"]
[Date "2023.06.20"]
[WhiteClock "0:01:24"]
[BlackClock "0:00:00"]
[Board "129"]

1. d4 {[%clk 0:02:58]}  d5 {[%clk 0:02:49]} 2. c4 {[%clk 0:02:57]}  e6 {[%clk 0:02:47]} 3. Nc3 {[%clk 0:02:57]}  a6 {[%clk 0:02:46]} 4. cxd5 {[%clk 0:02:57]}  exd5 {[%clk 0:02:46]} 5. Nf3 {[%clk 0:02:57]}  Nf6 {[%clk 0:02:40]} 6. Bg5 {[%clk 0:02:57]}  c6 {[%clk 0:02:30]} 7. e3 {[%clk 0:02:57]}  Bf5 {[%clk 0:02:24]} 8. Be2 {[%clk 0:02:55]}  Bd6 {[%clk 0:02:23]} 9. O-O {[%clk 0:02:54]}  Nbd7 {[%clk 0:02:22]} 10. Rc1 {[%clk 0:02:52]}  O-O {[%clk 0:02:21]} 11. a3 {[%clk 0:02:52]}  Re8 {[%clk 0:02:09]} 12. b4 {[%clk 0:02:51]}  h6 {[%clk 0:01:41]} 13. Bh4 {[%clk 0:02:51]}  Nf8 {[%clk 0:01:38]} 14. Na4 {[%clk 0:02:47]}  Ng6 {[%clk 0:01:34]} 15. Bg3 {[%clk 0:02:46]}  Ne4 {[%clk 0:01:30]} 16. Nc5 {[%clk 0:02:42]}  Re7 {[%clk 0:01:21]} 17. a4 {[%clk 0:02:34]}  h5 {[%clk 0:00:38]} 18. Nh4 {[%clk 0:02:13]}  Nxh4 {[%clk 0:00:24]} 19. Bxh4 {[%clk 0:02:14]}  Bxc5 {[%clk 0:00:24]} 20. bxc5 {[%clk 0:02:01]}  g5 {[%clk 0:00:24]} 21. f3 {[%clk 0:01:55]}  gxh4 {[%clk 0:00:22]} 22. fxe4 {[%clk 0:01:55]}  Bxe4 {[%clk 0:00:23]} 23. Bxh5 {[%clk 0:01:55]}  Kh8 {[%clk 0:00:17]} 24. Rf4 {[%clk 0:01:45]}  Qg8 {[%clk 0:00:16]} 25. Rg4 {[%clk 0:01:45]}  Qh7 {[%clk 0:00:15]} 26. Rxh4 {[%clk 0:01:45]}  Rg8 {[%clk 0:00:14]} 27. g3 {[%clk 0:01:26]}  Rg5 {[%clk 0:00:13]} 28. Bg4 {[%clk 0:01:24]}  Qxh4 {[%clk 0:00:06]} 29. gxh4 {[%clk 0:01:25]}  Rg7 {[%clk 0:00:05]} 30. Kf2 {[%clk 0:01:25]}  f5 {[%clk 0:00:04]} 31. Bf3 {[%clk 0:01:25]}  Rg6 {[%clk 0:00:03]} 32. h5 {[%clk 0:01:25]}  Rg5 {[%clk 0:00:02]} 33. h4 {[%clk 0:01:24]}  Rg8 {[%clk 0:00:00]} 34. h6 {[%clk 0:01:24]} 1-0


[Site "https://www.chess.com"]

[Event "Titled Tuesday Blitz June 20 Late 2023"]
[White "K2JW"]
[Black "The_Sherman_Variation"]
[WhiteElo "2338"]
[BlackElo "2509"]
[Result "0-1"]
[Round "4"]
[TimeControl "180+2"]
[Date "2023.06.20"]
[WhiteClock "0:00:02"]
[BlackClock "0:00:56"]
[Board "130"]

1. d4 {[%clk 0:03:00]}  b6 {[%clk 0:02:59]} 2. e4 {[%clk 0:03:00]}  Bb7 {[%clk 0:03:00]} 3. Bd3 {[%clk 0:03:01]}  e6 {[%clk 0:03:01]} 4. Nf3 {[%clk 0:03:00]}  Nf6 {[%clk 0:03:02]} 5. Qe2 {[%clk 0:02:57]}  c5 {[%clk 0:03:00]} 6. d5 {[%clk 0:02:50]}  exd5 {[%clk 0:02:55]} 7. exd5+ {[%clk 0:02:49]}  Qe7 {[%clk 0:02:55]} 8. c4 {[%clk 0:02:25]}  Na6 {[%clk 0:02:46]} 9. a3 {[%clk 0:01:43]}  Qxe2+ {[%clk 0:02:43]} 10. Kxe2 {[%clk 0:01:43]}  Bd6 {[%clk 0:02:43]} 11. Re1 {[%clk 0:01:31]}  O-O {[%clk 0:02:43]} 12. Kf1 {[%clk 0:01:27]}  Rfe8 {[%clk 0:02:42]} 13. Rxe8+ {[%clk 0:01:22]}  Rxe8 {[%clk 0:02:43]} 14. Nc3 {[%clk 0:01:16]}  Nc7 {[%clk 0:02:40]} 15. Bg5 {[%clk 0:01:04]}  Ng4 {[%clk 0:02:35]} 16. Bf5 {[%clk 0:00:30]}  Ne5 {[%clk 0:02:17]} 17. Re1 {[%clk 0:00:22]}  Nxf3 {[%clk 0:02:10]} 18. Rxe8+ {[%clk 0:00:17]}  Nxe8 {[%clk 0:02:11]} 19. gxf3 {[%clk 0:00:17]}  Bc8 {[%clk 0:02:04]} 20. Nb5 {[%clk 0:00:11]}  Bb8 {[%clk 0:02:05]} 21. Ke2 {[%clk 0:00:07]}  a6 {[%clk 0:02:02]} 22. Nc3 {[%clk 0:00:07]}  f6 {[%clk 0:01:59]} 23. Bh4 {[%clk 0:00:05]}  Be5 {[%clk 0:01:57]} 24. Kd3 {[%clk 0:00:04]}  Nd6 {[%clk 0:01:55]} 25. Bh3 {[%clk 0:00:04]}  b5 {[%clk 0:01:53]} 26. cxb5 {[%clk 0:00:04]}  axb5 {[%clk 0:01:54]} 27. Bg3 {[%clk 0:00:04]}  c4+ {[%clk 0:01:50]} 28. Kd2 {[%clk 0:00:04]}  Nf7 {[%clk 0:01:49]} 29. Nxb5 {[%clk 0:00:03]}  Ba6 {[%clk 0:01:43]} 30. Nc3 {[%clk 0:00:03]}  d6 {[%clk 0:01:39]} 31. f4 {[%clk 0:00:03]}  Bd4 {[%clk 0:01:39]} 32. Be6 {[%clk 0:00:02]}  Kf8 {[%clk 0:01:38]} 33. Ke2 {[%clk 0:00:02]}  Nd8 {[%clk 0:01:37]} 34. f5 {[%clk 0:00:03]}  Ke7 {[%clk 0:01:37]} 35. Kf3 {[%clk 0:00:02]}  Nb7 {[%clk 0:01:37]} 36. Ke4 {[%clk 0:00:03]}  Be5 {[%clk 0:01:32]} 37. f4 {[%clk 0:00:03]}  Nc5+ {[%clk 0:01:32]} 38. Ke3 {[%clk 0:00:04]}  Bxc3 {[%clk 0:01:32]} 39. bxc3 {[%clk 0:00:05]}  g6 {[%clk 0:01:29]} 40. fxg6 {[%clk 0:00:04]}  hxg6 {[%clk 0:01:30]} 41. f5 {[%clk 0:00:05]}  g5 {[%clk 0:01:27]} 42. h4 {[%clk 0:00:05]}  gxh4 {[%clk 0:01:27]} 43. Bxh4 {[%clk 0:00:06]}  Bb5 {[%clk 0:01:22]} 44. Kd4 {[%clk 0:00:06]}  Nb3+ {[%clk 0:01:22]} 45. Ke3 {[%clk 0:00:06]}  Be8 {[%clk 0:01:21]} 46. Bg3 {[%clk 0:00:05]}  Bh5 {[%clk 0:01:20]} 47. Be1 {[%clk 0:00:04]}  Bg4 {[%clk 0:01:19]} 48. Kf4 {[%clk 0:00:03]}  Bh3 {[%clk 0:01:19]} 49. Kg3 {[%clk 0:00:04]}  Bf1 {[%clk 0:01:18]} 50. Kf2 {[%clk 0:00:05]}  Bd3 {[%clk 0:01:19]} 51. Ke3 {[%clk 0:00:05]}  Nc5 {[%clk 0:01:16]} 52. Bf2 {[%clk 0:00:04]}  Ne4 {[%clk 0:01:15]} 53. Be1 {[%clk 0:00:04]}  Nc5 {[%clk 0:01:13]} 54. Kd4 {[%clk 0:00:04]}  Bf1 {[%clk 0:01:11]} 55. Ke3 {[%clk 0:00:04]}  Nd3 {[%clk 0:01:11]} 56. Bd2 {[%clk 0:00:02]}  Nb2 {[%clk 0:01:11]} 57. Kd4 {[%clk 0:00:02]}  Kd8 {[%clk 0:01:07]} 58. Bh6 {[%clk 0:00:02]}  Ke7 {[%clk 0:01:03]} 59. Bf4 {[%clk 0:00:02]}  Bd3 {[%clk 0:01:02]} 60. Bc1 {[%clk 0:00:02]}  Na4 {[%clk 0:00:58]} 61. Ke3 {[%clk 0:00:03]}  Nxc3 {[%clk 0:00:58]} 62. Kd4 {[%clk 0:00:03]}  Ne2+ {[%clk 0:00:56]} 63. Ke3 {[%clk 0:00:02]}  Nxc1 {[%clk 0:00:57]} 64. a4 {[%clk 0:00:03]}  Nb3 {[%clk 0:00:57]} 65. Kf4 {[%clk 0:00:03]}  Bf1 {[%clk 0:00:57]} 66. Ke3 {[%clk 0:00:04]}  Bh3 {[%clk 0:00:55]} 67. Kf2 {[%clk 0:00:05]}  Bg4 {[%clk 0:00:55]} 68. Ke1 {[%clk 0:00:04]}  Bh5 {[%clk 0:00:55]} 69. Kf2 {[%clk 0:00:04]}  Be8 {[%clk 0:00:56]} 70. Ke3 {[%clk 0:00:02]}  Bxa4 {[%clk 0:00:56]} 0-1


[Site "https://www.chess.com"]

[Event "Titled Tuesday Blitz June 20 Late 2023"]
[White "Haszon, David"]
[Black "Blackburn, Jonathan L B"]
[WhiteFideId "733610"]
[BlackFideId "1801090"]
[WhiteElo "2210"]
[BlackElo "2178"]
[Result "1/2-1/2"]
[Round "4"]
[TimeControl "180+2"]
[Date "2023.06.20"]
[WhiteClock "0:01:35"]
[BlackClock "0:00:20"]
[Board "132"]

1. e4 {[%clk 0:03:00]}  e5 {[%clk 0:03:00]} 2. Nf3 {[%clk 0:03:00]}  Nf6 {[%clk 0:03:00]} 3. d4 {[%clk 0:03:00]}  Nxe4 {[%clk 0:02:44]} 4. Bd3 {[%clk 0:02:59]}  d5 {[%clk 0:02:41]} 5. Nxe5 {[%clk 0:02:58]}  Nd7 {[%clk 0:02:29]} 6. Nxd7 {[%clk 0:02:58]}  Bxd7 {[%clk 0:02:27]} 7. Nd2 {[%clk 0:02:59]}  Nxd2 {[%clk 0:02:24]} 8. Bxd2 {[%clk 0:03:00]}  Qe7+ {[%clk 0:02:23]} 9. Qe2 {[%clk 0:02:58]}  Qxe2+ {[%clk 0:02:23]} 10. Kxe2 {[%clk 0:02:59]}  Bd6 {[%clk 0:02:19]} 11. Rhe1 {[%clk 0:02:56]}  O-O {[%clk 0:02:15]} 12. Kf3 {[%clk 0:02:56]}  Rfe8 {[%clk 0:02:14]} 13. Bf4 {[%clk 0:02:51]}  Rxe1 {[%clk 0:01:57]} 14. Rxe1 {[%clk 0:02:49]}  Re8 {[%clk 0:01:56]} 15. Rxe8+ {[%clk 0:02:43]}  Bxe8 {[%clk 0:01:57]} 16. Bxd6 {[%clk 0:02:43]}  cxd6 {[%clk 0:01:58]} 17. h4 {[%clk 0:02:32]}  f6 {[%clk 0:01:52]} 18. g4 {[%clk 0:02:32]}  g6 {[%clk 0:01:51]} 19. g5 {[%clk 0:02:32]}  f5 {[%clk 0:01:44]} 20. Ke3 {[%clk 0:02:31]}  Kf7 {[%clk 0:01:43]} 21. f4 {[%clk 0:02:32]}  Ke6 {[%clk 0:01:41]} 22. Kd2 {[%clk 0:02:31]}  Bc6 {[%clk 0:01:33]} 23. Be2 {[%clk 0:02:30]}  a6 {[%clk 0:01:18]} 24. Kc3 {[%clk 0:02:26]}  Kd7 {[%clk 0:01:18]} 25. Kb4 {[%clk 0:02:25]}  Kc7 {[%clk 0:01:19]} 26. h5 {[%clk 0:02:25]}  Be8 {[%clk 0:00:57]} 27. h6 {[%clk 0:02:25]}  Bf7 {[%clk 0:00:55]} 28. Ka5 {[%clk 0:02:21]}  Bg8 {[%clk 0:00:54]} 29. a3 {[%clk 0:02:18]}  Be6 {[%clk 0:00:54]} 30. Bf3 {[%clk 0:02:18]}  Bf7 {[%clk 0:00:54]} 31. b4 {[%clk 0:02:12]}  Be6 {[%clk 0:00:51]} 32. Be2 {[%clk 0:02:06]}  Bc8 {[%clk 0:00:44]} 33. Bh5 {[%clk 0:01:52]}  b6+ {[%clk 0:00:28]} 34. Ka4 {[%clk 0:01:52]}  Bd7+ {[%clk 0:00:28]} 35. Kb3 {[%clk 0:01:48]}  Be8 {[%clk 0:00:26]} 36. Bf3 {[%clk 0:01:46]}  Bf7 {[%clk 0:00:26]} 37. Be2 {[%clk 0:01:44]}  Kb7 {[%clk 0:00:25]} 38. a4 {[%clk 0:01:40]}  a5 {[%clk 0:00:20]} 39. c4 {[%clk 0:01:39]}  dxc4+ {[%clk 0:00:19]} 40. Bxc4 {[%clk 0:01:40]}  d5 {[%clk 0:00:17]} 41. Bb5 {[%clk 0:01:37]}  Kc7 {[%clk 0:00:16]} 42. Be2 {[%clk 0:01:30]}  Kd6 {[%clk 0:00:15]} 43. Bf3 {[%clk 0:01:28]}  Kc7 {[%clk 0:00:15]} 44. Kc3 {[%clk 0:01:28]}  Kd6 {[%clk 0:00:16]} 45. Be2 {[%clk 0:01:28]}  Kc7 {[%clk 0:00:16]} 46. Bd3 {[%clk 0:01:28]}  Kd6 {[%clk 0:00:16]} 47. Bc2 {[%clk 0:01:28]}  Kc7 {[%clk 0:00:16]} 48. Bb1 {[%clk 0:01:29]}  Kd6 {[%clk 0:00:17]} 49. Bd3 {[%clk 0:01:28]}  Kc7 {[%clk 0:00:17]} 50. Ba6 {[%clk 0:01:28]}  Kd6 {[%clk 0:00:15]} 51. Bc8 {[%clk 0:01:24]}  Kc7 {[%clk 0:00:15]} 52. Ba6 {[%clk 0:01:25]}  Kd6 {[%clk 0:00:15]} 53. bxa5 {[%clk 0:01:25]}  bxa5 {[%clk 0:00:15]} 54. Bb5 {[%clk 0:01:26]}  Kc7 {[%clk 0:00:15]} 55. Kd3 {[%clk 0:01:26]}  Kd6 {[%clk 0:00:15]} 56. Ke3 {[%clk 0:01:26]}  Kc7 {[%clk 0:00:16]} 57. Kf3 {[%clk 0:01:27]}  Kd6 {[%clk 0:00:16]} 58. Kg3 {[%clk 0:01:28]}  Kc7 {[%clk 0:00:16]} 59. Kh4 {[%clk 0:01:28]}  Kd6 {[%clk 0:00:17]} 60. Bd3 {[%clk 0:01:28]}  Kc7 {[%clk 0:00:14]} 61. Kg3 {[%clk 0:01:28]}  Kd6 {[%clk 0:00:15]} 62. Kh2 {[%clk 0:01:29]}  Kc7 {[%clk 0:00:14]} 63. Kh1 {[%clk 0:01:29]}  Kd6 {[%clk 0:00:14]} 64. Kg1 {[%clk 0:01:30]}  Be8 {[%clk 0:00:14]} 65. Kg2 {[%clk 0:01:31]}  Bf7 {[%clk 0:00:10]} 66. Kf2 {[%clk 0:01:30]}  Be8 {[%clk 0:00:09]} 67. Ke1 {[%clk 0:01:30]}  Bf7 {[%clk 0:00:09]} 68. Kd2 {[%clk 0:01:31]}  Ke6 {[%clk 0:00:09]} 69. Bb5 {[%clk 0:01:27]}  Kd6 {[%clk 0:00:09]} 70. Kc3 {[%clk 0:01:28]}  Kc7 {[%clk 0:00:09]} 71. Kb2 {[%clk 0:01:28]}  Kd6 {[%clk 0:00:09]} 72. Bd3 {[%clk 0:01:28]}  Kc7 {[%clk 0:00:09]} 73. Ka1 {[%clk 0:01:29]}  Kd6 {[%clk 0:00:09]} 74. Kb1 {[%clk 0:01:30]}  Be8 {[%clk 0:00:09]} 75. Kc1 {[%clk 0:01:22]}  Ke6 {[%clk 0:00:09]} 76. Bc2 {[%clk 0:01:18]}  Kd6 {[%clk 0:00:08]} 77. Kd2 {[%clk 0:01:19]}  Bf7 {[%clk 0:00:09]} 78. Kd1 {[%clk 0:01:19]}  Kc7 {[%clk 0:00:09]} 79. Ke1 {[%clk 0:01:20]}  Kd6 {[%clk 0:00:09]} 80. Kf2 {[%clk 0:01:20]}  Kc7 {[%clk 0:00:10]} 81. Kf1 {[%clk 0:01:21]}  Kd6 {[%clk 0:00:10]} 82. Kg1 {[%clk 0:01:21]}  Kc7 {[%clk 0:00:11]} 83. Kh1 {[%clk 0:01:22]}  Kd6 {[%clk 0:00:11]} 84. Kh2 {[%clk 0:01:22]}  Kc7 {[%clk 0:00:12]} 85. Kh3 {[%clk 0:01:23]}  Kd6 {[%clk 0:00:12]} 86. Kh4 {[%clk 0:01:24]}  Kc7 {[%clk 0:00:13]} 87. Kg3 {[%clk 0:01:24]}  Kd6 {[%clk 0:00:13]} 88. Kg2 {[%clk 0:01:25]}  Kc7 {[%clk 0:00:14]} 89. Kg1 {[%clk 0:01:26]}  Kd6 {[%clk 0:00:14]} 90. Kf1 {[%clk 0:01:26]}  Kc7 {[%clk 0:00:15]} 91. Bb3 {[%clk 0:01:27]}  Kd6 {[%clk 0:00:15]} 92. Kf2 {[%clk 0:01:27]}  Kc7 {[%clk 0:00:16]} 93. Kf3 {[%clk 0:01:28]}  Kd6 {[%clk 0:00:16]} 94. Ke3 {[%clk 0:01:29]}  Kc7 {[%clk 0:00:16]} 95. Ke2 {[%clk 0:01:29]}  Kd6 {[%clk 0:00:17]} 96. Ke1 {[%clk 0:01:30]}  Kc7 {[%clk 0:00:17]} 97. Kd1 {[%clk 0:01:31]}  Kd6 {[%clk 0:00:18]} 98. Kd2 {[%clk 0:01:31]}  Kc7 {[%clk 0:00:18]} 99. Kd3 {[%clk 0:01:32]}  Kd6 {[%clk 0:00:19]} 100. Kc3 {[%clk 0:01:33]}  Kc7 {[%clk 0:00:19]} 101. Kc2 {[%clk 0:01:34]}  Kd6 {[%clk 0:00:20]} 102. Kb2 {[%clk 0:01:35]}  Kc7 {[%clk 0:00:20]} 103. Ka3 {[%clk 0:01:35]}  Kd6 {[%clk 0:00:20]} 1/2-1/2


[Site "https://www.chess.com"]

[Event "Titled Tuesday Blitz June 20 Late 2023"]
[White "Kokoszczynski, Jan"]
[Black "Todev, Simeon"]
[WhiteFideId "1174460"]
[BlackFideId "2925133"]
[WhiteElo "2139"]
[BlackElo "1938"]
[Result "0-1"]
[Round "4"]
[TimeControl "180+2"]
[Date "2023.06.20"]
[WhiteClock "0:00:02"]
[BlackClock "0:00:46"]
[Board "135"]

1. d4 {[%clk 0:03:00]}  Nf6 {[%clk 0:02:56]} 2. c4 {[%clk 0:03:01]}  e6 {[%clk 0:02:57]} 3. Nc3 {[%clk 0:03:01]}  b6 {[%clk 0:02:58]} 4. f3 {[%clk 0:02:57]}  Bb7 {[%clk 0:02:56]} 5. e4 {[%clk 0:02:55]}  d5 {[%clk 0:02:56]} 6. Bg5 {[%clk 0:02:44]}  Bb4 {[%clk 0:02:51]} 7. e5 {[%clk 0:02:42]}  h6 {[%clk 0:02:46]} 8. exf6 {[%clk 0:02:22]}  hxg5 {[%clk 0:02:45]} 9. fxg7 {[%clk 0:02:22]}  Rg8 {[%clk 0:02:45]} 10. Qa4+ {[%clk 0:02:13]}  Nc6 {[%clk 0:02:44]} 11. cxd5 {[%clk 0:02:09]}  Qxd5 {[%clk 0:02:43]} 12. Bb5 {[%clk 0:02:08]}  O-O-O {[%clk 0:02:22]} 13. Bxc6 {[%clk 0:01:57]}  Bxc3+ {[%clk 0:02:20]} 14. bxc3 {[%clk 0:01:58]}  Bxc6 {[%clk 0:02:20]} 15. Qxa7 {[%clk 0:01:32]}  Qc4 {[%clk 0:02:14]} 16. Ne2 {[%clk 0:01:02]}  g4 {[%clk 0:01:58]} 17. Qa3 {[%clk 0:00:31]}  gxf3 {[%clk 0:01:52]} 18. Ng3 {[%clk 0:00:16]}  fxg2 {[%clk 0:01:43]} 19. Rg1 {[%clk 0:00:16]}  Rxg7 {[%clk 0:01:42]} 20. Qb2 {[%clk 0:00:14]}  e5 {[%clk 0:01:10]} 21. O-O-O {[%clk 0:00:12]}  exd4 {[%clk 0:01:08]} 22. Nf5 {[%clk 0:00:11]}  dxc3 {[%clk 0:01:03]} 23. Rxd8+ {[%clk 0:00:11]}  Kxd8 {[%clk 0:01:03]} 24. Rd1+ {[%clk 0:00:11]}  Kc8 {[%clk 0:01:02]} 25. Qf2 {[%clk 0:00:11]}  c2 {[%clk 0:00:49]} 26. Rd4 {[%clk 0:00:02]}  Qf1+ {[%clk 0:00:46]} 0-1


[Site "https://www.chess.com"]

[Event "Titled Tuesday Blitz June 20 Late 2023"]
[White "cristianserban1"]
[Black "Spichkin, Alexander"]
[BlackFideId "4144074"]
[WhiteElo "2494"]
[BlackElo "1986"]
[Result "1-0"]
[Round "4"]
[TimeControl "180+2"]
[Date "2023.06.20"]
[WhiteClock "0:01:17"]
[BlackClock "0:01:10"]
[Board "136"]

1. d4 {[%clk 0:02:57]}  e6 {[%clk 0:02:48]} 2. Bf4 {[%clk 0:02:57]}  c5 {[%clk 0:02:48]} 3. e3 {[%clk 0:02:57]}  Qb6 {[%clk 0:02:47]} 4. Nc3 {[%clk 0:02:57]}  cxd4 {[%clk 0:02:45]} 5. exd4 {[%clk 0:02:57]}  Bb4 {[%clk 0:02:45]} 6. Nf3 {[%clk 0:02:52]}  Nf6 {[%clk 0:02:44]} 7. Be2 {[%clk 0:02:48]}  Nd5 {[%clk 0:02:44]} 8. Bd2 {[%clk 0:02:46]}  Nxc3 {[%clk 0:02:44]} 9. bxc3 {[%clk 0:02:46]}  Be7 {[%clk 0:02:45]} 10. O-O {[%clk 0:02:45]}  O-O {[%clk 0:02:45]} 11. c4 {[%clk 0:02:42]}  Nc6 {[%clk 0:02:40]} 12. d5 {[%clk 0:02:39]}  exd5 {[%clk 0:02:39]} 13. cxd5 {[%clk 0:02:40]}  Na5 {[%clk 0:02:33]} 14. c4 {[%clk 0:02:12]}  d6 {[%clk 0:02:28]} 15. Qa4 {[%clk 0:02:11]}  Bd8 {[%clk 0:02:28]} 16. Bd3 {[%clk 0:01:56]}  Bg4 {[%clk 0:02:17]} 17. Rab1 {[%clk 0:01:56]}  Qc7 {[%clk 0:02:05]} 18. Nd4 {[%clk 0:01:53]}  b6 {[%clk 0:01:33]} 19. Bxa5 {[%clk 0:01:49]}  bxa5 {[%clk 0:01:33]} 20. Nb5 {[%clk 0:01:30]}  Qd7 {[%clk 0:01:28]} 21. Qa3 {[%clk 0:01:30]}  Bb6 {[%clk 0:01:15]} 22. Qxd6 {[%clk 0:01:28]}  Qe8 {[%clk 0:01:12]} 23. Rfe1 {[%clk 0:01:17]}  Qc8 {[%clk 0:01:10]} 1-0


[Site "https://www.chess.com"]